Workbook

Sheet Sheet1
A1: Fixed Pivot specification | H1: =+PI()/180 -> 0.01745329252 | V1: 1
E2: degrees | F2: radians | H2: 1. Use ThreePosition_Fixed Pivot() function twice to determine -ZA and -ZB | O2: A0 | P2: 0 | Q2: 0 | S2: 0 | T2: 0
A3: d2 | B3: 4 | C3: 0 | D3: a2 | E3: 30 | F3: =+E3*D_R -> 0.5235987756 | H3: 2. Determine WA and WB as -Z-W | O3: A | P3: =+P2+C14 -> -3.278042579 | Q3: =+Q2+D14 -> 1.836767527 | S3: =+S2+F14*COS((L18+G19)*D_R) -> -3.278042579 | T3: =+T2+F14*SIN((L18+G19)*D_R) -> 1.836767527
A4: d3 | B4: 12 | C4: 0 | D4: a3 | E4: 60 | F4: =+E4*D_R -> 1.047197551 | H4: 3. Use Three_Position_FixedPivot_Beta() twice to determine the crank angles. | O4: B | P4: =+P3+C18 -> -4.553399082 | Q4: =+Q3+D18 -> 2.641538422 | S4: =+S5+F16*COS(N18) -> -4.553399082 | T4: =+T5+F16*SIN(N18) -> 2.641538422
H5: The rest is analysis | O5: B0 | P5: =+P2+C19 -> -2 | Q5: =+Q2+D19 -> -1 | S5: =+P5 -> -2 | T5: =+Q5 -> -1
A6: RA | B6: 7 | C6: 3 | D6: RB | E6: 5 | F6: 2 | O6: B | P6: =+P4 -> -4.553399082 | Q6: =+Q4 -> 2.641538422 | S6: =+S4 -> -4.553399082 | T6: =+T4 -> 2.641538422 | V6: =+V7-V1*SIN(P18) -> -7 | W6: =+W7+V1*COS(P18) -> -2
O7: C | P7: =P3+C15 -> -7 | Q7: =D14+D15 -> -3 | S7: =+S3+F15*COS(M18+I15*D_R) -> -7 | T7: =+T8+F15*SIN(M18+I15*D_R) -> -3 | V7: =+S7 -> -7 | W7: =+T7 -> -3
A8: WAx | B8: Way | C8: -ZAx | D8: -ZAy | E8: WBx | F8: WBy | G8: -ZBx | H8: -ZBy | I8: ABx | J8: ABy | K8: A0B0x | L8: A0B0y | O8: A | P8: =+P3 -> -3.278042579 | Q8: =+Q3 -> 1.836767527 | S8: =+S3 -> -3.278042579 | T8: =+T3 -> 1.836767527 | V8: =+V7+V1*COS(P18) -> -6 | W8: =+W7+V1*SIN(P18) -> -3
A9: =+C9-B6 -> -3.278042579 | B9: =+D9-C6 -> 1.836767527 | C9: =ThreePosition2_FixedPivot(F3,F4,B3:C3,B4:C4,B6:C6) -> 3.721957421 | D9: 4.836767527 | E9: =+G9-E6 -> -2.553399082 | F9: =+H9-F6 -> 3.641538422 | G9: =ThreePosition2_FixedPivot(F3,F4,B3:C3,B4:C4,E6:F6) -> 2.446600918 | H9: 5.641538422 | I9: =+G9-C9 -> -1.275356503 | J9: =+H9-D9 -> 0.804770895 | K9: =+(A9-C9+G9-E9) -> -2 | L9: =+(B9-D9+H9-F9) -> -1 | O9: B | P9: =+P6 -> -4.553399082 | Q9: =+Q6 -> 2.641538422 | S9: =+S4 -> -4.553399082 | T9: =+T4 -> 2.641538422
A10: b2 | B10: b3 | E10: b2 | F10: b3
A11: =ThreePosition_FixedPivot_Beta(F3,F4,B3:C3,B4:C4,B6:C6) -> -0.4361978592 | B11: 4.431982448 | E11: =ThreePosition_FixedPivot_Beta(F3,F4,B3:C3,B4:C4,E6:F6) -> -0.2188353864 | F11: 4.822945915 | S11: =+S12 -> -7 | T11: =+T12+V1 -> -2
A12: =+A11/D_R -> -24.99229637 | B12: =+B11/D_R -> 253.9338891 | E12: =+E11/D_R -> -12.53834405 | F12: =+F11/D_R -> 276.3344457 | L12: Analysis | S12: =+P7 -> -7 | T12: =+Q7 -> -3
C13: x | D13: y | F13: r | G13: q | S13: =+S12+V1 -> -6 | T13: =+T12 -> -3
A14: Z1 | B14: WA | C14: =+A9 -> -3.278042579 | D14: =+B9 -> 1.836767527 | E14: a2 | F14: =+mag(A9,B9) -> 3.757562787 | G14: =+ATAN2(A9,B9)/D_R -> 150.7370223 | L14: q0 | M14: =+G14-G19 -> 304.1719712 | N14: qf | O14: =+M14+B7 -> 304.1719712
A15: Z2 | B15: ZA | C15: =-C9 -> -3.721957421 | D15: =-D9 -> -4.836767527 | E15: b3 | F15: =+mag(C9,D9) -> 6.103055559 | G15: =+ATAN2(-C9,-D9)/D_R -> -127.5787643 | H15: a3 | I15: =+G15-G18+360 -> 84.67383424 | M15: -1 | S15: =+S16-V1*SIN(F3) -> -3.5 | T15: =+T16+V1*COS(F3) -> -2.133974596
A16: Z3 | B16: WB | C16: =+E9 -> -2.553399082 | D16: =+F9 -> 3.641538422 | E16: a4 | F16: =+mag(E9,F9) -> 4.447544148 | G16: =+ATAN2(E9,F9)/D_R -> 125.0376357 | S16: =+S12+B3 -> -3 | T16: =+T12+C3 -> -3
A17: Z4 | B17: ZB | C17: =-G9 -> -2.446600918 | D17: =-H9 -> -5.641538422 | E17: c3 | F17: =+mag(G9,H9) -> 6.149212293 | G17: =+ATAN2(-G9,-H9)/D_R -> -113.4452296 | L17: q | M17: q13 | N17: q14 | S17: =+S16+V1*COS(F3) -> -2.133974596 | T17: =+T16+V1*SIN(F3) -> -2.5
A18: Z5 | B18: AB | C18: =+I9 -> -1.275356503 | D18: =+J9 -> 0.804770895 | E18: a3 | F18: =+mag(I9,J9) -> 1.50804191 | G18: =+ATAN2(I9,J9)/D_R -> 147.7474015 | K18: 0 | L18: =+$M$14+K18*$M$15 -> 304.1719712 | M18: =FourBar2($F$14,$F$18,$F$16,$F$19,-1,L18*D_R)+$G$19*D_R -> 2.578678618 | N18: 2.182318432 | P18: =(M19-G18)*D_R -> 9.921048172e-16
A19: Z6 | B19: AoBo | C19: =+K9 -> -2 | D19: =+L9 -> -1 | E19: a1 | F19: =+mag(K9,L9) -> 2.236067977 | G19: =+ATAN2(K9,L9)/D_R -> -153.4349488 | H19: a1 | I19: =360+G19 -> 206.5650512 | M19: =+M18/D_R -> 147.7474015 | N19: =+N18/D_R -> 125.0376357 | S19: =+S20-V1*SIN(F4) -> 4.133974596 | T19: =+T20+V1*COS(F4) -> -2.5
S20: =+S12+B4 -> 5 | T20: =+T12+C4 -> -3
S21: =+S20+V1*COS(F4) -> 5.5 | T21: =+T20+V1*SIN(F4) -> -2.133974596
A22: =ThreePosition_Basic(F3,F4,B3:C3,B4:C4,A11,B11) -> -3.278042579 | B22: 1.836767527 | C22: -3.721957421 | D22: -4.836767527
I24: =0.11/(0.04)^2 -> 68.75
D25: =+F16+F14 -> 8.205106936
D26: =+F18+F19 -> 3.744109887
A29: =5*A9 -> -16.3902129 | B29: =5*B9 -> 9.183837636 | C29: 18.6097871 | D29: 24.18383764 | E29: -12.76699541 | F29: 18.20769211 | G29: 12.23300459 | H29: 28.20769211
A32: 10 | B32: =45*D_R -> 0.7853981634
A33: =CConv(A32,B32) -> 7.071067812 | B33: 7.071067812
A34: =CIConv(A33:B33) -> 10 | B34: 0.7853981634

Sheet Sheet2

Sheet Sheet3
